lending/lending_fUSD_20240710
["ID","MTS","AMOUNT","RATE_DAILY","PERIOD"]
[331629251,1720591877661,-937.1,0.00013808,2]
[331629252,1720591877670,-500.0,0.00013808,2]
[331629253,1720591877680,-500.0,0.00013808,2]
[331629254,1720591877690,-577.4,0.00013808,2]
[331629255,1720591877700,-715.31,0.00013808,2]
[331629256,1720591877710,-1116.29,0.00013808,2]
[331629257,1720591877719,-500.0,0.00013808,2]
[331629258,1720591877728,-297.97123718,0.00013808,2]
[331629259,1720591877738,-500.0,0.00013808,2]
[331629260,1720591877749,-1892.57,0.00013808,2]
[331629261,1720591877759,-875.61,0.00013808,2]
[331629262,1720591877768,-500.0,0.00013808,2]
[331629263,1720591877777,-743.19,0.00013808,2]
[331629264,1720591877787,-1253.8,0.00013808,2]
[331629265,1720591877798,-613.73,0.00013808,2]
[331629266,1720591877809,-500.0,0.00013808,2]
[331629267,1720591877821,-511.81,0.00013808,2]
[331629268,1720591877830,-685.6,0.00013808,2]
[331629269,1720591877840,-500.0,0.00013808,2]
[331629270,1720591877849,-500.0,0.00013808,2]
[331629271,1720591877858,-1543.3,0.00013808,2]
[331629272,1720591877868,-1348.23,0.00013808,2]
[331629273,1720591877878,-1146.04,0.00013808,2]
[331629274,1720591877887,-500.0,0.00013808,2]
[331629275,1720591877898,-1410.74,0.00013808,2]
[331629276,1720591877908,-500.0,0.00013808,2]
[331629277,1720591877917,-500.0,0.00013808,2]
[331629278,1720591877928,-2002.75,0.00013808,2]
[331629279,1720591877938,-500.0,0.00013808,2]
[331629280,1720591877947,-998.07,0.00013808,2]
[331629281,1720591877956,-874.59,0.00013808,2]
[331629282,1720591877965,-500.0,0.00013808,2]
[331629283,1720591877974,-500.0,0.00013808,2]
[331629284,1720591877984,-920.24,0.00013808,2]
[331629285,1720591877993,-500.0,0.00013808,2]
[331629286,1720591878002,-500.0,0.00013808,2]
[331629287,1720591878012,-1407.04,0.00013808,2]
[331629288,1720591878021,-500.0,0.00013808,2]
[331629289,1720591878031,-500.0,0.00013808,2]
[331629290,1720591878040,-2564.4,0.00013808,2]
[331629291,1720591878049,-785.48,0.00013808,2]
[331629292,1720591878059,-500.0,0.00013808,2]
[331629293,1720591878068,-500.0,0.00013808,2]
[331629294,1720591878077,-852.64,0.00013808,2]
[331629295,1720591878087,-500.0,0.00013808,2]
[331629296,1720591878096,-500.0,0.00013808,2]
[331629297,1720591878106,-500.0,0.00013808,2]
[331629298,1720591878116,-845.76,0.00013808,2]
[331629299,1720591878126,-500.0,0.00013808,2]
[331629300,1720591878135,-1211.81,0.00013808,2]
[331629301,1720591878144,-629.47,0.00013808,2]
[331629302,1720591878154,-1805.06,0.00013808,2]
[331629303,1720591878163,-657.09,0.00013808,2]
[331629304,1720591878172,-531.73183622,0.00013808,2]
[331629305,1720591878768,-484.78794435,0.00013698,2]
[331629306,1720591878846,-15.21205565,0.00013698,2]
[331629307,1720591878855,-500.0,0.00013753,2]
[331629308,1720591878864,-179.45816378,0.00013808,2]
[331629309,1720591878873,-659.05,0.00013808,2]
[331629310,1720591878884,-500.0,0.00013808,2]
[331629311,1720591878893,-500.0,0.00013808,2]
[331629312,1720591878905,-1211.77,0.00013808,2]
[331629313,1720591878914,-500.0,0.00013808,2]
[331629314,1720591878923,-1213.11,0.00013808,2]
[331629315,1720591878932,-645.78,0.00013808,2]
[331629316,1720591878941,-54.32715694,0.00013808,2]
[331629317,1720591878953,-445.67284306,0.00013808,2]
[331629318,1720591878964,-600.86,0.00013808,2]
[331629319,1720591878973,-513.39112123,0.00013808,2]
[331629320,1720591878985,-283.50483076,0.00013808,2]
[331629321,1720591878997,-917.32404801,0.00013808,2]
[331629322,1720591879008,-500.0,0.00013808,2]
[331629323,1720591879019,-501.4435493,0.00013808,2]
[331629324,1720591879028,-424.59999117,0.00013808,2]
[331629325,1720591879042,-96.89000883,0.00013808,2]
[331629326,1720591879053,-778.67,0.00013808,2]
[331629327,1720591879063,-500.0,0.00013808,2]
[331629328,1720591879071,-500.0,0.00013808,2]
[331629329,1720591879081,-500.0,0.00013808,2]
[331629330,1720591879092,-500.0,0.00013808,2]
[331629331,1720591879105,-500.0,0.00013808,2]
[331629332,1720591879118,-627.17,0.00013808,2]
[331629333,1720591879128,-506.61,0.00013808,2]
[331629334,1720591879137,-615.1,0.00013808,2]
[331629335,1720591879148,-82.20120353,0.00013808,2]
[331629336,1720591879159,-612.61879647,0.00013808,2]
[331629337,1720591879168,-1705.16,0.00013808,2]
[331629338,1720591879178,-1303.83,0.00013808,2]
[331629339,1720591879187,-1049.09,0.00013808,2]
[331629340,1720591879196,-500.0,0.00013808,2]
[331629341,1720591879206,-663.8,0.00013808,2]
[331629342,1720591879215,-500.0,0.00013808,2]
[331629343,1720591879224,-2303.66,0.00013808,2]
[331629344,1720591879233,-1960.02,0.00013808,2]
[331629345,1720591879245,-500.0,0.00013808,2]
[331629346,1720591879258,-500.0,0.00013808,2]
[331629347,1720591879271,-500.0,0.00013808,2]
[331629348,1720591879284,-500.0,0.00013808,2]
[331629349,1720591879297,-895.78,0.00013808,2]
[331629350,1720591879308,-5.3420127,0.00013808,2]
[331629351,1720591889577,3072.15423039,0.00011854,2]
[331629352,1720591891355,282.76890485,0.00011854,2]
[331629359,1720591999525,319.001741,0.00024999,120]
[331629360,1720592074984,3000.0,0.00027,120]
[331629362,1720592464538,308.59,0.00010666,2]
[331629363,1720592650106,227.29136124,0.00011199,2]
[331629365,1720592790751,482.87871356,0.00011199,2]
[331629367,1720592913821,38069.85533552,0.00011199,2]
[331629368,1720592913850,16000.0,0.00011199,2]
[331629369,1720592913879,388248.73353776,0.00011199,2]
[331629373,1720592956831,12536.29199862,0.00011199,2]
[331629379,1720592975461,150.0,0.00011199,2]
[331629380,1720592975484,77.29136124,0.00011199,2]
[331629382,1720592997510,274.52420257,0.000106,2]
[331629383,1720592997537,18.63579743,0.000106,2]
[331629389,1720593032319,-500.0,0.00012241,2]
[331629390,1720593032329,-500.0,0.00012241,2]
[331629391,1720593032338,-500.0,0.00012241,2]
[331629392,1720593032347,-500.0,0.00012241,2]
[331629393,1720593032357,-507.45,0.00012392,2]
[331629394,1720593032367,-179.55606851,0.00012421,2]
[331629395,1720593033229,-14.94393149,0.00012421,2]
[331629396,1720593033240,-1000.0,0.00012519,2]
[331629397,1720593033250,-250.0,0.00012534,2]
[331629398,1720593033260,-1570.46,0.00012564,2]
[331629399,1720593033272,-236.55,0.00012584,2]
[331629400,1720593033283,-194.6,0.00012608,2]
[331629401,1720593033293,-293.16,0.00012864,2]
[331629402,1720593033303,-300.0,0.00012895,2]
[331629403,1720593033313,-500.0,0.00012896,2]
[331629404,1720593033323,-999.99,0.00012896,2]
[331629405,1720593033332,-1000.0,0.000129,2]
[331629406,1720593033341,-499.99,0.0001293,2]
[331629407,1720593033351,-1801.29,0.0001293,2]
[331629408,1720593033360,-500.0,0.00012972,2]
[331629409,1720593033370,-500.0,0.00012972,2]
[331629411,1720593033379,-500.0,0.00012972,2]
[331629412,1720593033388,-500.0,0.00012972,2]
[331629413,1720593033398,-251.51,0.00012972,2]
[331629414,1720593033408,-509.84,0.00012972,2]
[331629415,1720593033417,-150.0,0.00013,2]
[331629416,1720593033429,-5000.0,0.00013128,2]
[331629417,1720593033439,-500.0,0.00013163,2]
[331629418,1720593033448,-500.0,0.00013297,2]
[331629419,1720593033457,-385.96925274,0.00013434,2]
[331629420,1720593033467,-302.903029,0.00013477,2]
[331629421,1720593033476,-1299.806438,0.00013477,2]
[331629422,1720593033485,-172.362248,0.00013477,2]
[331629423,1720593033494,-2439.315983,0.00013477,2]
[331629424,1720593033503,-178.625945,0.00013477,2]
[331629425,1720593033513,-170.29919,0.00013477,2]
[331629426,1720593033522,-187.204548,0.00013477,2]
[331629427,1720593033532,-2331.036355,0.00013477,2]
[331629428,1720593033543,-160.893093,0.00013477,2]
[331629429,1720593033553,-1073.98697933,0.00013478,2]
[331629430,1720593033562,-150.0,0.00013533,2]
[331629431,1720593033571,-150.0,0.00013551,2]
[331629432,1720593033580,-1866.7433,0.00013553,2]
[331629433,1720593033589,-2544.6796,0.00013553,2]
[331629434,1720593033599,-1500.0,0.00013554,2]
[331629435,1720593033609,-203.63992961,0.00013561,2]
[331629436,1720593033618,-150.0,0.00013565,2]
[331629437,1720593033627,-150.0,0.00013567,2]
[331629438,1720593033636,-200.24108052,0.00013574,2]
[331629439,1720593033645,-200.24108052,0.00013574,2]
[331629440,1720593033654,-150.0,0.00013578,2]
[331629441,1720593033663,-150.0,0.00013589,2]
[331629442,1720593033673,-150.0,0.00013591,2]
[331629443,1720593033682,-150.0,0.00013593,2]
[331629444,1720593033691,-201.14974838,0.00013598,2]
[331629445,1720593033701,-182.34687994,0.00013598,2]
[331629446,1720593033710,-178.45990259,0.00013598,2]
[331629447,1720593033719,-323.87905989,0.00013598,2]
[331629448,1720593033728,-2500.0,0.00013598,2]
[331629449,1720593033737,-150.0,0.00013599,2]
[331629450,1720593033746,-511.4,0.000136,2]
[331629451,1720593033755,-356.0,0.000136,2]
[331629452,1720593033765,-1000.0,0.000136,2]
[331629453,1720593033774,-225.0,0.000136,2]
[331629454,1720593033784,-150.0,0.00013602,2]
[331629455,1720593033794,-150.0,0.00013604,2]
[331629456,1720593033803,-150.0,0.00013611,2]
[331629457,1720593033813,-150.0,0.00013613,2]
[331629458,1720593033822,-151.76475,0.00013615,2]
[331629459,1720593033831,-150.0,0.00013623,2]
[331629460,1720593033841,-150.0,0.00013623,2]
[331629461,1720593033850,-150.0,0.00013632,2]
[331629462,1720593033859,-150.0,0.00013636,2]
[331629463,1720593033869,-302.903029,0.00013646,2]
[331629464,1720593033878,-1299.806438,0.00013646,2]
[331629465,1720593033887,-2439.315983,0.00013646,2]
[331629466,1720593033896,-2331.036355,0.00013646,2]
[331629467,1720593033905,-17225.5287,0.00013653,2]
[331629468,1720593033914,-94174.1376,0.00013653,2]
[331629469,1720593033924,-167.58945235,0.00013653,2]
[331629470,1720593033933,-150.0,0.00013664,2]
[331629471,1720593033942,-151.55819943,0.00013667,2]
[331629472,1720593033952,-150.0,0.0001367,2]
[331629473,1720593033961,-150.0,0.00013671,2]
[331629474,1720593033970,-500.0,0.00013681,2]
[331629475,1720593033979,-500.0,0.00013697,2]
[331629476,1720593033988,-150.0,0.00013697,2]
[331629477,1720593033997,-500.0,0.00013698,2]
[331629478,1720593034007,-500.0,0.00013698,2]
[331629479,1720593034016,-500.0,0.00013698,2]
[331629480,1720593034026,-538.21,0.00013698,2]
[331629481,1720593034035,-500.0,0.00013698,2]
[331629482,1720593034044,-500.0,0.00013698,2]
[331629483,1720593034053,-500.0,0.00013698,2]
[331629484,1720593034062,-500.0,0.00013698,2]
[331629485,1720593034071,-466.09158947,0.00013698,2]
[331629486,1720593034080,-500.0,0.00013698,2]
[331629487,1720593034090,-1224.62,0.00013698,2]
[331629488,1720593034099,-500.0,0.00013698,2]
[331629489,1720593034108,-500.0,0.00013698,2]
[331629490,1720593034117,-918.7,0.00013698,2]
[331629491,1720593034127,-528.53,0.00013698,2]
[331629492,1720593034136,-255.8270806,0.00013698,2]
[331629493,1720593034145,-500.0,0.00013698,2]
[331629494,1720593034154,-500.0,0.00013698,2]
[331629495,1720593034164,-500.0,0.00013698,2]
[331629496,1720593034174,-625.89,0.00013698,2]
[331629497,1720593034183,-462.11554759,0.00013698,2]
[331629503,1720593038460,-37.88445241,0.00013698,2]
[331629504,1720593038471,-463.9311114,0.00013698,2]
[331629505,1720593038597,-36.0688886,0.00013698,2]
[331629506,1720593038606,-515.86736511,0.00013698,2]
[331629518,1720593041099,-138.19263489,0.00013698,2]
[331629520,1720593041109,-500.0,0.00013698,2]
[331629522,1720593041119,-500.0,0.00013698,2]
[331629524,1720593041128,-1179.7,0.00013698,2]
[331629526,1720593041137,-1002.78,0.00013698,2]
[331629528,1720593041147,-500.0,0.00013698,2]
[331629530,1720593041156,-500.0,0.00013698,2]
[331629532,1720593041165,-629.05,0.00013698,2]
[331629534,1720593041175,-500.0,0.00013698,2]
[331629536,1720593041185,-500.0,0.00013698,2]
[331629538,1720593041194,-500.0,0.00013698,2]
[331629540,1720593041203,-500.0,0.00013698,2]
[331629542,1720593041213,-500.0,0.00013698,2]
[331629544,1720593041222,-873.31,0.00013698,2]
[331629546,1720593041232,-733.22,0.00013698,2]
[331629548,1720593041241,-598.67,0.00013698,2]
[331629550,1720593041250,-500.0,0.00013698,2]
[331629552,1720593041260,-500.0,0.00013698,2]
[331629554,1720593041270,-2500.0,0.00013698,3]
[331629556,1720593041287,-536.24,0.00013698,2]
[331629557,1720593041297,-500.0,0.00013698,2]
[331629560,1720593041312,-597.39,0.00013698,2]
[331629562,1720593041322,-574.95,0.00013698,2]
[331629564,1720593041332,-500.0,0.00013698,2]
[331629566,1720593041342,-709.78,0.00013698,2]
[331629568,1720593041353,-1060.3,0.00013698,2]
[331629570,1720593041362,-500.0,0.00013698,2]
[331629572,1720593041372,-822.09,0.00013698,2]
[331629573,1720593041381,-784.58,0.00013698,2]
[331629574,1720593041390,-500.0,0.00013698,2]
[331629575,1720593041400,-501.63,0.00013698,2]
[331629576,1720593041410,-500.0,0.00013698,2]
[331629577,1720593041419,-681.34,0.00013698,2]
[331629578,1720593041433,-500.0,0.00013698,2]
[331629579,1720593041442,-500.0,0.00013698,2]
[331629580,1720593041452,-1116.66,0.00013698,2]
[331629581,1720593041462,-1140.85,0.00013698,2]
[331629582,1720593041472,-500.0,0.00013698,2]
[331629583,1720593041481,-190.52126043,0.00013698,2]
[331629584,1720593041490,-500.0,0.00013698,2]
[331629585,1720593041500,-1235.47,0.00013698,2]
[331629586,1720593041510,-500.0,0.00013698,2]
[331629587,1720593041520,-500.0,0.00013698,2]
[331629588,1720593041530,-500.0,0.00013698,2]
[331629589,1720593041541,-567.65,0.00013698,2]
[331629590,1720593041550,-1131.0,0.00013698,2]
[331629591,1720593041560,-917.95,0.00013698,2]
[331629592,1720593041570,-500.0,0.00013698,2]
[331629593,1720593041579,-500.0,0.00013698,2]
[331629594,1720593041589,-500.0,0.00013698,2]
[331629595,1720593041598,-1189.86,0.00013698,2]
[331629596,1720593041608,-500.0,0.00013698,2]
[331629597,1720593041617,-753.71,0.00013698,2]
[331629598,1720593041627,-500.0,0.00013698,2]
[331629599,1720593041636,-500.0,0.00013698,2]
[331629600,1720593041645,-1353.02,0.00013698,2]
[331629601,1720593041655,-595.85,0.00013698,2]
[331629602,1720593041664,-767.1,0.00013698,2]
[331629603,1720593041674,-500.0,0.00013698,2]
[331629604,1720593041685,-500.0,0.00013698,2]
[331629605,1720593041695,-500.0,0.00013698,2]
[331629606,1720593041705,-500.0,0.00013698,2]
[331629607,1720593041715,-500.0,0.00013698,2]
[331629608,1720593041725,-500.0,0.00013698,2]
[331629609,1720593041735,-1337.64,0.00013698,2]
[331629610,1720593041745,-500.0,0.00013698,2]
[331629611,1720593041755,-810.98,0.00013698,2]
[331629612,1720593041765,-930.81,0.00013698,2]
[331629613,1720593041775,-1541.94,0.00013698,2]
[331629614,1720593041784,-500.0,0.00013698,2]
[331629615,1720593041795,-500.0,0.00013698,2]
[331629616,1720593041804,-500.0,0.00013698,2]
[331629617,1720593041814,-244.89472605,0.00013698,2]
[331629618,1720593041824,-500.0,0.00013698,2]
[331629619,1720593041834,-528.54,0.00013698,2]
[331629620,1720593041843,-500.0,0.00013698,2]
[331629621,1720593041852,-500.0,0.00013698,2]
[331629622,1720593041862,-500.0,0.00013698,2]
[331629623,1720593041872,-500.0,0.00013698,2]
[331629624,1720593041882,-500.0,0.00013698,2]
[331629625,1720593041891,-500.0,0.00013698,2]
[331629626,1720593041900,-500.0,0.00013698,2]
[331629627,1720593041909,-500.0,0.00013698,2]
[331629628,1720593041919,-500.0,0.00013698,2]
[331629629,1720593041929,-500.0,0.00013698,2]
[331629630,1720593041939,-583.93,0.00013698,2]
[331629631,1720593041949,-500.0,0.00013698,2]
[331629632,1720593041958,-500.0,0.00013698,2]
[331629633,1720593041968,-500.0,0.00013698,2]
[331629634,1720593041977,-500.0,0.00013698,2]
[331629635,1720593041987,-500.0,0.00013698,2]
[331629636,1720593041996,-500.0,0.00013698,2]
[331629637,1720593042006,-890.09,0.00013698,2]
[331629638,1720593042015,-500.0,0.00013698,2]
[331629639,1720593042026,-1153.02,0.00013698,2]
[331629640,1720593042035,-500.0,0.00013698,2]
[331629641,1720593042044,-500.0,0.00013698,2]
[331629642,1720593042054,-378.27704631,0.00013698,2]
[331629643,1720593042064,-859.2,0.00013698,2]
[331629644,1720593042074,-500.0,0.00013698,2]
[331629645,1720593042084,-500.0,0.00013698,2]
[331629646,1720593042094,-580.38,0.00013698,2]
[331629647,1720593042103,-500.0,0.00013698,2]
[331629648,1720593042113,-500.0,0.00013698,2]
[331629649,1720593042123,-500.0,0.00013698,2]
[331629650,1720593042137,-500.0,0.00013698,2]
[331629651,1720593042146,-500.0,0.00013698,2]
[331629652,1720593042156,-927.93,0.00013698,2]
[331629653,1720593042165,-500.0,0.00013698,2]
[331629654,1720593042175,-1857.41,0.00013698,2]
[331629655,1720593042185,-500.0,0.00013698,2]
[331629656,1720593042195,-586.48,0.00013698,2]
[331629657,1720593042204,-500.0,0.00013698,2]
[331629658,1720593042214,-871.12,0.00013698,2]
[331629659,1720593042223,-288.41603773,0.00013698,2]
[331629660,1720593042232,-500.0,0.00013698,2]
[331629661,1720593042242,-1119.92,0.00013698,2]
[331629662,1720593042251,-681.25,0.00013698,2]
[331629663,1720593042260,-186.34954446,0.00013698,2]
[331629664,1720593042270,-500.0,0.00013698,2]
[331629665,1720593042279,-500.0,0.00013698,2]
[331629666,1720593042289,-860.96,0.00013698,2]
[331629667,1720593042298,-694.22,0.00013698,2]
[331629668,1720593042308,-710.12,0.00013698,2]
[331629669,1720593042318,-500.0,0.00013698,2]
[331629670,1720593042327,-500.0,0.00013698,2]
[331629671,1720593042337,-328.17932598,0.00013698,2]
[331629672,1720593042347,-1368.94,0.00013698,2]
[331629673,1720593042355,-500.0,0.00013698,2]
[331629674,1720593042365,-1122.44,0.00013698,2]
[331629675,1720593042374,-639.71,0.00013698,2]
[331629676,1720593042383,-500.0,0.00013698,2]
[331629677,1720593042393,-356.1157917,0.00013698,2]
[331629678,1720593042402,-500.0,0.00013698,2]
[331629679,1720593042411,-541.38682949,0.00013698,2]
[331629680,1720593042420,-500.0,0.00013698,2]
[331629681,1720593042431,-500.0,0.00013698,2]
[331629682,1720593042441,-500.0,0.00013698,2]
[331629683,1720593042450,-841.42,0.00013698,2]
[331629684,1720593042459,-500.0,0.00013698,2]
[331629685,1720593042468,-500.0,0.00013698,2]
[331629686,1720593042478,-1107.54,0.00013698,2]
[331629687,1720593042487,-1155.43,0.00013698,2]
[331629688,1720593042505,-318.08665389,0.00013698,2]
[331629689,1720593042517,-500.0,0.00013698,2]
[331629690,1720593042530,-220.93965742,0.00013698,2]
[331629691,1720593042540,-500.0,0.00013698,2]
[331629692,1720593042550,-1072.27,0.00013698,2]
[331629693,1720593042560,-500.0,0.00013698,2]
[331629694,1720593042570,-500.0,0.00013698,2]
[331629695,1720593042579,-936.97,0.00013698,2]
[331629696,1720593042589,-500.0,0.00013698,2]
[331629697,1720593042598,-942.44,0.00013698,2]
[331629698,1720593042608,-500.0,0.00013698,2]
[331629699,1720593042617,-500.0,0.00013698,2]
[331629700,1720593042627,-500.0,0.00013698,2]
[331629701,1720593042636,-529.66,0.00013698,2]
[331629702,1720593042645,-500.0,0.00013698,2]
[331629703,1720593042655,-1022.57,0.00013698,2]
[331629704,1720593042664,-729.64,0.00013698,2]
[331629705,1720593042674,-500.0,0.00013698,2]
[331629706,1720593042684,-500.0,0.00013698,2]
[331629707,1720593042693,-551.6,0.00013698,2]
[331629708,1720593042703,-565.99,0.00013698,2]
[331629709,1720593042713,-345.55431398,0.00013698,2]
[331629710,1720593042723,-512.91,0.00013698,2]
[331629711,1720593042732,-500.0,0.00013698,2]
[331629712,1720593042742,-500.0,0.00013698,2]
[331629713,1720593042751,-500.0,0.00013698,2]
[331629714,1720593042761,-513.73,0.00013698,2]
[331629715,1720593042771,-539.2,0.00013698,2]
[331629716,1720593042781,-500.0,0.00013698,2]
[331629717,1720593042791,-500.0,0.00013698,2]
[331629718,1720593042801,-528.83,0.00013698,2]
[331629719,1720593042810,-530.6,0.00013698,2]
[331629720,1720593042820,-500.0,0.00013698,2]
[331629721,1720593042830,-537.01,0.00013698,2]
[331629722,1720593042840,-640.67130135,0.00013698,2]
[331629723,1720593042849,-500.0,0.00013698,2]
[331629724,1720593042859,-815.89,0.00013698,2]
[331629725,1720593042868,-500.0,0.00013698,2]
[331629726,1720593042878,-500.0,0.00013698,2]
[331629727,1720593042887,-500.0,0.00013698,2]
[331629728,1720593042897,-1364.71,0.00013698,2]
[331629729,1720593042906,-589.76,0.00013698,2]
[331629730,1720593042915,-500.0,0.00013698,2]
[331629731,1720593042925,-500.0,0.00013698,2]
[331629732,1720593042934,-500.0,0.00013698,2]
[331629733,1720593042944,-500.0,0.00013698,2]
[331629734,1720593042954,-500.0,0.00013698,2]
[331629735,1720593042964,-525.02,0.00013698,2]
[331629736,1720593042974,-500.0,0.00013698,2]
[331629737,1720593042983,-500.0,0.00013698,2]
[331629738,1720593042993,-500.0,0.00013698,2]
[331629739,1720593043002,-500.0,0.00013698,2]
[331629740,1720593043012,-500.0,0.00013698,2]
[331629741,1720593043021,-1231.16,0.00013698,2]
[331629742,1720593043031,-500.0,0.00013698,2]
[331629743,1720593043040,-500.0,0.00013698,2]
[331629744,1720593043050,-500.0,0.00013698,2]
[331629745,1720593043060,-500.0,0.00013698,2]
[331629746,1720593043069,-1259.81,0.00013698,2]
[331629747,1720593043079,-500.0,0.00013698,2]
[331629748,1720593043088,-500.0,0.00013698,2]
[331629749,1720593043098,-590.29,0.00013698,2]
[331629750,1720593043108,-500.0,0.00013698,2]
[331629751,1720593043117,-521.79,0.00013698,2]
[331629752,1720593043127,-1210.71,0.00013698,2]
[331629753,1720593043137,-500.0,0.00013698,2]
[331629754,1720593043146,-1579.43,0.00013698,2]
[331629755,1720593043155,-500.0,0.00013698,2]
[331629757,1720593043165,-500.0,0.00013698,2]
[331629759,1720593043175,-500.0,0.00013698,2]
[331629761,1720593043186,-617.22,0.00013698,2]
[331629763,1720593043196,-701.41,0.00013698,2]
[331629765,1720593043205,-500.0,0.00013698,2]
[331629766,1720593043220,-500.0,0.00013698,2]
[331629767,1720593043230,-500.0,0.00013698,2]
[331629768,1720593043239,-500.0,0.00013698,2]
[331629769,1720593043249,-508.9,0.00013698,2]
[331629770,1720593043259,-500.0,0.00013698,2]
[331629771,1720593043268,-500.0,0.00013698,2]
[331629772,1720593043279,-500.0,0.00013698,2]
[331629773,1720593043291,-500.0,0.00013698,2]
[331629774,1720593043300,-500.0,0.00013698,2]
[331629775,1720593043310,-805.21,0.00013698,2]
[331629776,1720593043320,-1064.59,0.00013698,2]
[331629777,1720593043330,-1646.07,0.00013698,2]
[331629778,1720593043340,-500.0,0.00013698,2]
[331629780,1720593043350,-500.0,0.00013698,2]
[331629782,1720593043359,-500.0,0.00013698,2]
[331629783,1720593043369,-1492.01,0.00013698,2]
[331629784,1720593043379,-1938.57,0.00013698,2]
[331629785,1720593043389,-500.0,0.00013698,2]
[331629786,1720593043400,-500.0,0.00013698,2]
[331629787,1720593043410,-543.44,0.00013698,2]
[331629788,1720593043420,-500.0,0.00013698,2]
[331629789,1720593043430,-500.0,0.00013698,2]
[331629790,1720593043440,-500.0,0.00013698,2]
[331629791,1720593043449,-587.89,0.00013698,2]
[331629792,1720593043460,-500.0,0.00013698,2]
[331629793,1720593043470,-679.62,0.00013698,2]
[331629794,1720593043480,-1357.03,0.00013698,2]
[331629795,1720593043489,-714.32,0.00013698,2]
[331629796,1720593043499,-659.19,0.00013698,2]
[331629797,1720593043510,-500.0,0.00013698,2]
[331629798,1720593043520,-500.0,0.00013698,2]
[331629799,1720593043933,-893.68,0.00013698,2]
[331629800,1720593043950,-500.0,0.00013698,2]
[331629801,1720593043960,-500.0,0.00013698,2]
[331629802,1720593043968,-500.0,0.00013698,2]
[331629803,1720593043978,-1018.83,0.00013698,2]
[331629804,1720593043987,-644.79,0.00013698,2]
[331629805,1720593043996,-508.55,0.00013698,2]
[331629806,1720593044006,-500.0,0.00013698,2]
[331629807,1720593044015,-500.0,0.00013698,2]
[331629808,1720593044024,-500.0,0.00013698,2]
[331629809,1720593044033,-500.0,0.00013698,2]
[331629810,1720593044042,-690.3,0.00013698,2]
[331629811,1720593044051,-290.49670584,0.00013698,2]
[331629812,1720593044060,-500.0,0.00013698,2]
[331629813,1720593044070,-500.0,0.00013698,2]
[331629814,1720593044079,-500.0,0.00013698,2]
[331629815,1720593044088,-500.0,0.00013698,2]
[331629816,1720593044098,-1363.97,0.00013698,2]
[331629817,1720593044107,-543.18,0.00013698,2]
[331629818,1720593044116,-500.0,0.00013698,2]
[331629819,1720593044125,-693.82,0.00013698,2]
[331629820,1720593044135,-1715.01,0.00013698,2]
[331629821,1720593044144,-500.0,0.00013698,2]
[331629822,1720593044153,-500.0,0.00013698,2]
[331629823,1720593044163,-581.34,0.00013698,2]
[331629824,1720593044172,-500.0,0.00013698,2]